[Event "FIDE Womens World Cup 2021"]
[Site "Sochi"]
[Date "2021.07.13"]
[Round "1.2"]
[White "Latreche, Sabrina"]
[Black "Buksa, Nataliya"]
[Result "1-0"]
[ECO "B49"]
[WhiteElo "2076"]
[BlackElo "2413"]
[Annotator "NA"]
[PlyCount "132"]
[EventDate "2021.07.12"]
[EventType "k.o."]
[EventCountry "RUS"]
[SourceTitle "playchess.com"]
[Source "ChessBase"]
[SourceQuality "1"]
[TimeControl "40/5400+30:1800+30"]

1. e4 {[%emt 0:00:04]} c5 {[%emt 0:00:04]} 2. Nf3 {[%emt 0:00:09]} e6 {[%emt 0:00:04]} 3. d4 {[%emt 0:00:26]} cxd4 {[%emt 0:00:05]} 4. Nxd4 {[%emt 0:00:07]} Nc6 {[%emt 0:00:04]} 5. Nc3 {[%emt 0:01:08]} Qc7 {[%emt 0:00:18]} 6. Be3 {[%emt 0:03:54]} a6 {[%emt 0:00:04]} 7. Be2 {[%emt 0:01:45]} Nf6 {[%emt 0:00:57]} 8. O-O {[%emt 0:01:17]} Be7 {[%emt 0:00:04]} 9. Nb3 {[%emt 0:06:10]} b5 {[%emt 0:08:49]} 10. f3 {[%emt 0:01:38]} d6 {[%emt 0:03:46]} 11. a3 {[%emt 0:05:06]} Bb7 {[%emt 0:04:35]} 12. f4 {[%emt 0:07:00]} Rd8 {[%emt 0:11:59]} 13. Qe1 {[%emt 0:07:55]} O-O {[%emt 0:08:51]} 14. Qf2 {[%emt 0:02:21]} Nd7 {[%emt 0:05:09]} 15. Rad1 {[%emt 0:02:01]} Na5 {[%emt 0:05:44]} 16. Nxa5 {[%emt 0:04:52]} Qxa5 {[%emt 0:00:04]} 17. f5 {[%emt 0:09:51]} b4 {[%emt 0:04:18]} 18. axb4 {[%emt 0:01:24]} Qxb4 {[%emt 0:00:04]} 19. Rd4 {[%emt 0:03:04]} Qxb2 {[%emt 0:13:50]} 20. Rb1 {[%emt 0:03:18]} Qxc3 {[%emt 0:03:14]} 21. Rc4 {[%emt 0:00:34]} Qf6 {[%emt 0:03:04]} 22. Rxb7 {[%emt 0:00:24]} Nc5 {[%emt 0:00:04]} 23. e5 {[%emt 0:02:19]} Qxe5 {[%emt 0:10:01]} 24. Bxc5 {[%emt 0:03:56]} dxc5 {[%emt 0:01:53]} 25. Rxe7 {[%emt 0:00:05]} Rd5 {[%emt 0:00:27]} 26. f6 {[%emt 0:06:11]} Rd2 {[%emt 0:07:48]} 27. fxg7 {[%emt 0:02:16]} Kxg7 {[%emt 0:00:03]} 28. Rg4+ {[%emt 0:03:38]} Kh8 {[%emt 0:00:03]} 29. Rxf7 {[%emt 0:02:15]} Qa1+ {[%emt 0:08:08]} 30. Qf1 {[%emt 0:00:15]} Qxf1+ {[%emt 0:00:03]} 31. Rxf1 {[%emt 0:00:07]} Rxf1+ {[%emt 0:00:58]} 32. Kxf1 {[%emt 0:00:08]} Rxc2 {[%emt 0:00:03]} 33. Bxa6 {[%emt 0:00:11]} Rd2 {[%emt 0:01:06]} 34. Bc4 {[%emt 0:01:06]} Rd6 {[%emt 0:00:04]} 35. Re4 {[%emt 0:00:11]} Kg7 {[%emt 0:00:03]} 36. Rxe6 {[%emt 0:00:49]} Rd4 {[%emt 0:00:04]} 37. Be2 {[%emt 0:00:09]} Rd5 {[%emt 0:02:04]} 38. Rc6 {[%emt 0:00:25]} Rf5+ {[%emt 0:00:33]} 39. Bf3 {[%emt 0:00:17]} Re5 {[%emt 0:00:04]} 40. Kf2 {[%emt 0:00:35]} Kf7 {[%emt 0:00:04]} 41. Kg3 {[%emt 0:30:24]} Kg7 {[%emt 0:30:26]} 42. Kf4 {[%emt 0:00:23]} Re7 {[%emt 0:00:05]} 43. Rxc5 {[%emt 0:01:08]} Rf7+ {[%emt 0:00:02]} 44. Ke5 {[%emt 0:01:26]} Kg6 {[%emt 0:00:12]} 45. Bh5+ {[%emt 0:05:29]} Kxh5 {[%emt 0:00:13]} 46. Ke6+ {[%emt 0:00:04]} Kg6 {[%emt 0:00:00]} 47. Rg5+ {[%emt 0:00:00]} Kxg5 {[%emt 0:00:00]} 48. Kxf7 {[%emt 0:00:00]} h5 {[%emt 0:00:00]} 49. Ke6 {[%emt 0:00:00]} Kg4 {[%emt 0:00:00]} 50. Ke5 {[%emt 0:00:00]} Kh4 {[%emt 0:00:00]} 51. Ke4 {[%emt 0:00:00]} Kg4 {[%emt 0:00:00]} 52. Ke3 {[%emt 0:00:00]} Kf5 {[%emt 0:00:00]} 53. Kf3 {[%emt 0:00:00]} Ke5 {[%emt 0:00:00]} 54. h3 {[%emt 0:00:00]} Kf5 {[%emt 0:00:00]} 55. g3 {[%emt 0:00:00]} Ke5 56. Ke3 {[%emt 0:00:00]} Kf5 {[%emt 0:00:00]} 57. Kd4 h4 {[%emt 0:00:00]} 58. g4+ {[%emt 0:00:00]} Kf4 {[%emt 0:00:00]} 59. Kd5 {[%emt 0:00:00]} Kg3 {[%emt 0:00:00]} 60. g5 {[%emt 0:00:00]} Kxh3 {[%emt 0:00:00]} 61. g6 {[%emt 0:00:00]} Kg2 {[%emt 0:00:34]} 62. g7 {[%emt 0:00:00]} h3 {[%emt 0:00:05]} 63. g8=Q+ {[%emt 0:00:00]} Kh1 {[%emt 0:02:05]} 64. Ke4 {[%emt 0:00:00]} h2 {[%emt 0:00:07]} 65. Qa2 {[%emt 0:00:00]} Kg1 {[%emt 0:00:04]} 66. Ke3 {[%emt 0:00:00]} Kh1 {[%emt 0:01:20]} 1-0

[Event "FIDE Womens World Cup 2021"]
[Site "Sochi"]
[Date "2021.07.13"]
[Round "1.2"]
[White "Omonova, Umida"]
[Black "Munguntuul, Batkhuyag"]
[Result "0-1"]
[ECO "B15"]
[WhiteElo "2035"]
[BlackElo "2428"]
[Annotator "NA"]
[PlyCount "114"]
[EventDate "2021.07.12"]
[EventType "k.o."]
[EventCountry "RUS"]
[SourceTitle "playchess.com"]
[Source "ChessBase"]
[SourceQuality "1"]
[TimeControl "40/5400+30:1800+30"]

1. e4 {[%emt 0:00:03]} c6 {[%emt 0:00:04]} 2. d4 {[%emt 0:00:08]} d5 {[%emt 0:00:02]} 3. Nd2 {[%emt 0:00:20]} dxe4 {[%emt 0:00:05]} 4. Nxe4 {[%emt 0:00:18]} Nf6 {[%emt 0:00:04]} 5. Nxf6+ {[%emt 0:00:26]} exf6 {[%emt 0:00:02]} 6. c3 {[%emt 0:00:14]} Bd6 {[%emt 0:00:06]} 7. Bd3 {[%emt 0:00:25]} O-O {[%emt 0:00:09]} 8. Qc2 {[%emt 0:00:28]} Re8+ {[%emt 0:00:10]} 9. Ne2 {[%emt 0:00:10]} h5 {[%emt 0:00:13]} 10. Be3 {[%emt 0:02:35]} Nd7 {[%emt 0:00:43]} 11. Ng3 {[%emt 0:03:54]} Nb6 {[%emt 0:46:48]} 12. Nxh5 {[%emt 0:21:26]} f5 {[%emt 0:01:49]} 13. O-O-O {[%emt 0:06:22]} Qh4 {[%emt 0:03:37]} 14. Be2 {[%emt 0:04:36]} Nd5 {[%emt 0:02:25]} 15. g3 {[%emt 0:08:24]} Qe7 {[%emt 0:09:22]} 16. Qd2 {[%emt 0:04:21]} g6 {[%emt 0:06:14]} 17. Nf4 {[%emt 0:02:06]} Nxe3 {[%emt 0:00:13]} 18. fxe3 {[%emt 0:02:28]} Qxe3 {[%emt 0:00:21]} 19. Rde1 {[%emt 0:01:41]} Bd7 {[%emt 0:07:41]} 20. Bd3 {[%emt 0:15:33]} Qxd2+ {[%emt 0:00:20]} 21. Kxd2 {[%emt 0:00:08]} Kg7 {[%emt 0:01:13]} 22. h4 {[%emt 0:02:46]} Rxe1 {[%emt 0:03:01]} 23. Kxe1 {[%emt 0:00:53]} c5 {[%emt 0:03:03]} 24. Kf2 {[%emt 0:05:09]} cxd4 {[%emt 0:00:55]} 25. cxd4 {[%emt 0:00:02]} Rd8 {[%emt 0:01:44]} 26. Bc4 {[%emt 0:03:13]} Bc6 {[%emt 0:04:14]} 27. d5 {[%emt 0:01:45]} Bd7 {[%emt 0:00:09]} 28. Re1 {[%emt 0:01:03]} Kf6 {[%emt 0:00:34]} 29. Nd3 {[%emt 0:00:29]} Rc8 {[%emt 0:00:56]} 30. Bb3 {[%emt 0:01:13]} Bb5 {[%emt 0:01:49]} 31. Nf4 {[%emt 0:00:28]} Be5 {[%emt 0:01:29]} 32. Kf3 {[%emt 0:03:53]} Bxb2 {[%emt 0:04:35]} 33. d6 {[%emt 0:00:19]} Re8 {[%emt 0:00:14]} 34. Rb1 {[%emt 0:03:44]} Ba3 {[%emt 0:01:08]} 35. Bxf7 {[%emt 0:04:36]} Bc6+ {[%emt 0:00:02]} 36. Bd5 {[%emt 0:00:07]} Bxd6 {[%emt 0:00:09]} 37. Bxc6 {[%emt 0:00:03]} bxc6 {[%emt 0:00:05]} 38. Ne2 {[%emt 0:00:57]} Bc5 {[%emt 0:02:19]} 39. Rb3 {[%emt 0:00:10]} Bb6 {[%emt 0:00:24]} 40. Rc3 {[%emt 0:01:05]} Re6 {[%emt 0:00:14]} 41. Rd3 {[%emt 0:30:32]} c5 {[%emt 0:07:44]} 42. Nf4 {[%emt 0:00:00]} c4 {[%emt 0:02:18]} 43. Rd1 {[%emt 0:00:00]} Rc6 {[%emt 0:04:11]} 44. Nd5+ {[%emt 0:00:00]} Kf7 {[%emt 0:00:43]} 45. Nb4 {[%emt 0:00:00]} Rc7 {[%emt 0:01:31]} 46. Rc1 {[%emt 0:00:00]} Ba5 {[%emt 0:01:46]} 47. Nd5 {[%emt 0:00:00]} Rc5 {[%emt 0:00:51]} 48. Ne3 {[%emt 0:00:00]} Bd2 {[%emt 0:03:11]} 49. Rb1 {[%emt 0:00:00]} Rc7 {[%emt 0:02:51]} 50. Nc2 {[%emt 0:00:00]} Rd7 {[%emt 0:00:03]} 51. Rb8 {[%emt 0:00:00]} Ba5 {[%emt 0:01:24]} 52. Ne3 {[%emt 0:00:14]} Rd3 {[%emt 0:00:53]} 53. Ke2 {[%emt 0:00:23]} Rd2+ {[%emt 0:00:03]} 54. Kf3 {[%emt 0:00:01]} Bb6 {[%emt 0:00:31]} 55. Rxb6 {[%emt 0:03:30]} axb6 {[%emt 0:00:03]} 56. Nxc4 {[%emt 0:00:04]} Rd3+ {[%emt 0:02:02]} 57. Kf2 {[%emt 0:00:03]} Ke6 {[%emt 0:00:06]} 0-1

[Event "FIDE Womens World Cup 2021"]
[Site "Sochi"]
[Date "2021.07.13"]
[Round "1.2"]
[White "Ortiz Verdezoto, Anahi"]
[Black "Atalik, Ekaterina"]
[Result "0-1"]
[ECO "D35"]
[WhiteElo "2013"]
[BlackElo "2433"]
[Annotator "NA"]
[PlyCount "86"]
[EventDate "2021.07.12"]
[EventType "k.o."]
[EventCountry "RUS"]
[SourceTitle "playchess.com"]
[Source "ChessBase"]
[SourceQuality "1"]
[TimeControl "40/5400+30:1800+30"]

1. d4 {[%emt 0:00:06]} d5 {[%emt 0:00:14]} 2. c4 {[%emt 0:00:12]} e6 {[%emt 0:00:16]} 3. Nc3 {[%emt 0:00:11]} Nf6 {[%emt 0:00:24]} 4. cxd5 {[%emt 0:00:39]} exd5 {[%emt 0:00:12]} 5. Bg5 {[%emt 0:00:15]} c6 {[%emt 0:00:51]} 6. e3 {[%emt 0:00:47]} Nbd7 {[%emt 0:00:52]} 7. Bd3 {[%emt 0:02:18]} Be7 {[%emt 0:00:45]} 8. Qc2 {[%emt 0:04:00]} Nh5 {[%emt 0:03:40]} 9. Bxe7 {[%emt 0:03:45]} Qxe7 {[%emt 0:00:05]} 10. Nge2 {[%emt 0:01:49]} g6 {[%emt 0:01:17]} 11. Rb1 {[%emt 0:01:41]} Nb6 {[%emt 0:05:17]} 12. O-O {[%emt 0:05:59]} Ng7 {[%emt 0:05:48]} 13. b4 {[%emt 0:06:54]} Bf5 {[%emt 0:04:45]} 14. b5 {[%emt 0:05:22]} O-O {[%emt 0:01:58]} 15. bxc6 {[%emt 0:01:07]} bxc6 {[%emt 0:00:09]} 16. e4 {[%emt 0:02:40]} dxe4 {[%emt 0:02:12]} 17. Bxe4 {[%emt 0:03:44]} Rac8 {[%emt 0:05:15]} 18. Rfe1 {[%emt 0:05:28]} Rfe8 {[%emt 0:07:10]} 19. Ng3 {[%emt 0:06:54]} Bxe4 {[%emt 0:00:31]} 20. Rxe4 {[%emt 0:01:25]} Ne6 {[%emt 0:03:10]} 21. Rbe1 {[%emt 0:08:43]} Nd5 {[%emt 0:05:21]} 22. Nce2 {[%emt 0:10:23]} Nf6 {[%emt 0:07:53]} 23. Rh4 {[%emt 0:01:33]} Nd5 {[%emt 0:02:27]} 24. Rg4 {[%emt 0:01:27]} Kh8 {[%emt 0:05:58]} 25. Re4 {[%emt 0:04:58]} Nf6 {[%emt 0:02:03]} 26. Re3 {[%emt 0:01:23]} Nd5 {[%emt 0:00:57]} 27. Re5 {[%emt 0:02:03]} Qb4 {[%emt 0:09:42]} 28. Rd1 {[%emt 0:01:04]} Qa3 {[%emt 0:07:19]} 29. Qd2 {[%emt 0:03:30]} Rb8 {[%emt 0:02:23]} 30. h4 {[%emt 0:03:33]} f6 {[%emt 0:05:49]} 31. Re4 {[%emt 0:00:12]} f5 {[%emt 0:00:16]} 32. Re5 {[%emt 0:01:17]} f4 {[%emt 0:01:39]} 33. Ne4 {[%emt 0:08:09]} f3 {[%emt 0:01:50]} 34. N2c3 {[%emt 0:00:25]} fxg2 {[%emt 0:01:05]} 35. Kxg2 {[%emt 0:02:25]} Nef4+ {[%emt 0:00:45]} 36. Kh1 {[%emt 0:00:58]} Rxe5 {[%emt 0:02:01]} 37. dxe5 {[%emt 0:00:02]} Qe7 {[%emt 0:00:47]} 38. Ng5 {[%emt 0:00:36]} Rf8 {[%emt 0:03:19]} 39. Nxd5 {[%emt 0:00:59]} cxd5 {[%emt 0:00:10]} 40. e6 {[%emt 0:00:53]} h6 {[%emt 0:01:31]} 41. Nf3 {[%emt 0:09:52]} Qxe6 {[%emt 0:01:25]} 42. Qc3+ {[%emt 0:00:22]} Kg8 {[%emt 0:01:50]} 43. Nd4 {[%emt 0:05:21]} Qg4 {[%emt 0:01:48]} 0-1

[Event "FIDE Womens World Cup 2021"]
[Site "Sochi"]
[Date "2021.07.13"]
[Round "1.2"]
[White "February, Jesse Nikki"]
[Black "Gunina, Valentina"]
[Result "1/2-1/2"]
[ECO "B13"]
[WhiteElo "1863"]
[BlackElo "2437"]
[Annotator "NA"]
[PlyCount "61"]
[EventDate "2021.07.12"]
[EventType "k.o."]
[EventCountry "RUS"]
[SourceTitle "playchess.com"]
[Source "ChessBase"]
[SourceQuality "1"]
[TimeControl "40/5400+30:1800+30"]

1. e4 {[%emt 0:00:08]} c6 {[%emt 0:00:06]} 2. d4 {[%emt 0:00:34]} d5 {[%emt 0:00:07]} 3. exd5 {[%emt 0:01:06]} cxd5 {[%emt 0:00:06]} 4. Bd3 {[%emt 0:00:32]} Nf6 {[%emt 0:00:17]} 5. h3 {[%emt 0:01:01]} Nc6 {[%emt 0:00:27]} 6. c3 {[%emt 0:01:01]} e5 {[%emt 0:00:59]} 7. dxe5 {[%emt 0:01:23]} Nxe5 {[%emt 0:00:08]} 8. Qe2 {[%emt 0:00:34]} Ne4 {[%emt 0:06:07]} 9. Bb5+ {[%emt 0:08:48]} Bd7 {[%emt 0:02:32]} 10. Bxd7+ {[%emt 0:11:21]} Kxd7 {[%emt 0:00:38]} 11. Nf3 {[%emt 0:20:09]} Nxf3+ {[%emt 0:04:27]} 12. Qxf3 {[%emt 0:02:37]} Qf6 {[%emt 0:00:11]} 13. Qxf6 {[%emt 0:02:07]} gxf6 {[%emt 0:02:11]} 14. Be3 {[%emt 0:01:29]} Re8 {[%emt 0:02:31]} 15. O-O {[%emt 0:06:05]} Rg8 {[%emt 0:03:25]} 16. Rd1 {[%emt 0:01:32]} Kc6 {[%emt 0:14:19]} 17. Nd2 {[%emt 0:03:12]} Ng5 {[%emt 0:04:11]} 18. Kf1 {[%emt 0:05:41]} b6 {[%emt 0:05:56]} 19. Nb3 {[%emt 0:07:35]} Bc5 {[%emt 0:03:00]} 20. Nd4+ {[%emt 0:05:20]} Bxd4 {[%emt 0:05:21]} 21. Rxd4 {[%emt 0:01:31]} Ne4 {[%emt 0:00:26]} 22. Rad1 {[%emt 0:01:08]} Re5 {[%emt 0:06:36]} 23. c4 {[%emt 0:07:32]} dxc4 {[%emt 0:01:50]} 24. Rxc4+ {[%emt 0:00:06]} Kb5 {[%emt 0:00:28]} 25. Rdd4 {[%emt 0:03:38]} Rge8 {[%emt 0:06:02]} 26. Rb4+ {[%emt 0:01:15]} Kc6 {[%emt 0:00:50]} 27. Rbc4+ {[%emt 0:00:20]} Kb5 {[%emt 0:00:14]} 28. Rb4+ {[%emt 0:01:57]} Kc6 {[%emt 0:00:04]} 29. Rbc4+ {[%emt 0:00:06]} Kb5 {[%emt 0:00:05]} 30. Rb4+ {[%emt 0:02:43]} Kc6 {[%emt 0:00:12]} 31. Rbc4+ {[%emt 0:00:06]} 1/2-1/2

[Event "FIDE Womens World Cup 2021"]
[Site "Sochi"]
[Date "2021.07.14"]
[Round "1.3"]
[White "Buksa, Nataliya"]
[Black "Latreche, Sabrina"]
[Result "1-0"]
[ECO "C65"]
[WhiteElo "2413"]
[BlackElo "2076"]
[Annotator "NA"]
[PlyCount "100"]
[EventDate "2021.07.12"]
[EventType "k.o."]
[EventCountry "RUS"]
[SourceTitle "playchess.com"]
[Source "ChessBase"]
[SourceQuality "1"]
[TimeControl "1500+10"]

1. e4 {[%emt 0:00:02]} e5 {[%emt 0:00:02]} 2. Nf3 {[%emt 0:00:01]} Nc6 {[%emt 0:00:01]} 3. Bb5 {[%emt 0:00:02]} Nf6 {[%emt 0:00:02]} 4. d3 {[%emt 0:00:41]} Bc5 {[%emt 0:00:29]} 5. Bxc6 {[%emt 0:00:13]} dxc6 {[%emt 0:00:02]} 6. Nbd2 {[%emt 0:00:01]} O-O {[%emt 0:00:48]} 7. Nc4 {[%emt 0:00:08]} Re8 {[%emt 0:01:14]} 8. Qe2 {[%emt 0:00:29]} Bg4 {[%emt 0:00:47]} 9. h3 {[%emt 0:00:02]} Bxf3 {[%emt 0:00:13]} 10. Qxf3 {[%emt 0:00:18]} Nd7 {[%emt 0:01:01]} 11. Bd2 {[%emt 0:01:23]} Re6 {[%emt 0:00:13]} 12. Be3 {[%emt 0:00:46]} Rf6 {[%emt 0:01:12]} 13. Qe2 {[%emt 0:01:29]} Bxe3 {[%emt 0:00:55]} 14. Qxe3 {[%emt 0:01:03]} Rg6 {[%emt 0:00:49]} 15. O-O {[%emt 0:01:31]} Qe7 {[%emt 0:00:52]} 16. f4 {[%emt 0:00:37]} exf4 {[%emt 0:00:55]} 17. Qxf4 {[%emt 0:00:22]} Nc5 {[%emt 0:01:14]} 18. Rae1 {[%emt 0:05:32]} Ne6 {[%emt 0:00:36]} 19. Qe3 {[%emt 0:00:02]} c5 {[%emt 0:03:20]} 20. Rf2 {[%emt 0:01:01]} Rf6 {[%emt 0:02:09]} 21. Ref1 {[%emt 0:01:09]} Rxf2 {[%emt 0:00:19]} 22. Qxf2 {[%emt 0:00:01]} Rf8 {[%emt 0:01:36]} 23. Ne3 {[%emt 0:00:08]} Qg5 {[%emt 0:00:34]} 24. Nf5 {[%emt 0:01:00]} b6 {[%emt 0:01:55]} 25. a4 {[%emt 0:01:48]} Kh8 {[%emt 0:01:17]} 26. Qe3 {[%emt 0:04:48]} Qxe3+ {[%emt 0:00:57]} 27. Nxe3 {[%emt 0:00:01]} c6 {[%emt 0:00:01]} 28. Nf5 {[%emt 0:00:12]} Nd4 {[%emt 0:01:10]} 29. c3 {[%emt 0:01:20]} Nxf5 {[%emt 0:00:43]} 30. Rxf5 {[%emt 0:00:01]} f6 {[%emt 0:00:39]} 31. Kf2 {[%emt 0:00:01]} g6 {[%emt 0:00:26]} 32. Rf3 {[%emt 0:00:01]} Kg7 {[%emt 0:00:16]} 33. Ke3 {[%emt 0:00:54]} Re8 {[%emt 0:00:39]} 34. g4 {[%emt 0:00:07]} h5 {[%emt 0:00:49]} 35. gxh5 {[%emt 0:00:42]} g5 {[%emt 0:00:01]} 36. h4 {[%emt 0:01:38]} gxh4 {[%emt 0:01:30]} 37. Rh3 {[%emt 0:00:05]} Re5 {[%emt 0:00:21]} 38. Rxh4 {[%emt 0:00:04]} Rg5 {[%emt 0:00:20]} 39. Kf4 {[%emt 0:00:46]} Kh6 {[%emt 0:00:01]} 40. Rh2 {[%emt 0:00:02]} a6 {[%emt 0:00:31]} 41. d4 {[%emt 0:00:05]} cxd4 {[%emt 0:00:06]} 42. cxd4 {[%emt 0:00:01]} Ra5 {[%emt 0:00:36]} 43. b3 {[%emt 0:00:32]} b5 {[%emt 0:00:01]} 44. e5 {[%emt 0:00:18]} fxe5+ {[%emt 0:00:25]} 45. dxe5 {[%emt 0:00:02]} bxa4 {[%emt 0:00:05]} 46. e6 {[%emt 0:00:22]} Rb5 {[%emt 0:00:01]} 47. bxa4 {[%emt 0:00:02]} Rb4+ {[%emt 0:00:18]} 48. Kf5 {[%emt 0:00:03]} Rb1 {[%emt 0:00:21]} 49. Re2 {[%emt 0:00:15]} Kg7 {[%emt 0:00:10]} 50. e7 {[%emt 0:00:03]} Rf1+ {[%emt 0:00:01]} 1-0

[Event "FIDE Womens World Cup 2021"]
[Site "Sochi"]
[Date "2021.07.14"]
[Round "1.3"]
[White "Guichard, Pauline"]
[Black "Varela La Madrid, Tilsia Carolina"]
[Result "1-0"]
[ECO "D41"]
[WhiteElo "2413"]
[BlackElo "2072"]
[Annotator "NA"]
[PlyCount "59"]
[EventDate "2021.07.12"]
[EventType "k.o."]
[EventCountry "RUS"]
[SourceTitle "playchess.com"]
[Source "ChessBase"]
[SourceQuality "1"]
[TimeControl "1500+10"]

1. d4 {[%emt 0:00:02]} d5 {[%emt 0:00:02]} 2. c4 {[%emt 0:00:02]} e6 {[%emt 0:00:01]} 3. Nf3 {[%emt 0:00:02]} Nf6 {[%emt 0:00:02]} 4. Nc3 {[%emt 0:00:02]} c5 {[%emt 0:00:01]} 5. cxd5 {[%emt 0:00:02]} Nxd5 {[%emt 0:00:02]} 6. e4 {[%emt 0:00:02]} Nxc3 {[%emt 0:00:01]} 7. bxc3 {[%emt 0:00:01]} cxd4 {[%emt 0:00:02]} 8. cxd4 {[%emt 0:00:02]} Bb4+ {[%emt 0:00:00]} 9. Bd2 {[%emt 0:00:02]} Bxd2+ {[%emt 0:00:02]} 10. Qxd2 {[%emt 0:00:01]} O-O {[%emt 0:00:03]} 11. Bc4 {[%emt 0:00:03]} Nd7 {[%emt 0:00:41]} 12. O-O {[%emt 0:00:03]} b6 {[%emt 0:00:04]} 13. Rad1 {[%emt 0:00:02]} Bb7 {[%emt 0:00:07]} 14. Rfe1 {[%emt 0:00:01]} Rc8 {[%emt 0:02:50]} 15. Bb3 {[%emt 0:00:02]} h6 {[%emt 0:03:55]} 16. Re3 {[%emt 0:00:17]} Nf6 {[%emt 0:00:13]} 17. d5 {[%emt 0:00:12]} Ng4 {[%emt 0:05:33]} 18. Ree1 {[%emt 0:04:16]} exd5 {[%emt 0:00:09]} 19. exd5 {[%emt 0:00:07]} Qd6 {[%emt 0:00:29]} 20. h3 {[%emt 0:00:20]} Nf6 {[%emt 0:00:06]} 21. Nd4 {[%emt 0:00:02]} Rfe8 {[%emt 0:04:03]} 22. Nf5 {[%emt 0:01:06]} Qd7 {[%emt 0:00:03]} 23. Qf4 {[%emt 0:00:23]} Rxe1+ {[%emt 0:03:42]} 24. Rxe1 {[%emt 0:00:02]} Re8 {[%emt 0:00:05]} 25. Rxe8+ {[%emt 0:00:36]} Nxe8 {[%emt 0:00:25]} 26. d6 {[%emt 0:00:43]} Kh8 {[%emt 0:02:06]} 27. Qe5 {[%emt 0:04:21]} Bc8 {[%emt 0:01:43]} 28. Nxh6 {[%emt 0:01:45]} f6 {[%emt 0:01:08]} 29. Qh5 {[%emt 0:00:37]} gxh6 30. Qxh6+ {[%emt 0:00:03]} 1-0

[Event "FIDE Womens World Cup 2021"]
[Site "Sochi"]
[Date "2021.07.14"]
[Round "1.3"]
[White "Salimova, Nurgyul"]
[Black "Aliaga Fernandez, Ingrid Y"]
[Result "1/2-1/2"]
[ECO "A05"]
[WhiteElo "2395"]
[BlackElo "2191"]
[Annotator "ChessBase"]
[PlyCount "124"]
[EventDate "2021.07.12"]
[EventType "k.o."]
[EventCountry "RUS"]
[SourceTitle "playchess.com"]
[Source "ChessBase"]
[SourceQuality "1"]
[TimeControl "1500+10"]

1. Nf3 {[%emt 0:00:03]} Nf6 {[%emt 0:00:01]} 2. g3 {[%emt 0:00:04]} d5 {[%emt 0:00:02]} 3. Bg2 {[%emt 0:00:07]} Bf5 {[%emt 0:00:01]} 4. O-O {[%emt 0:00:08]} e6 {[%emt 0:00:01]} 5. c4 {[%emt 0:00:20]} c6 {[%emt 0:00:01]} 6. b3 {[%emt 0:00:07]} Be7 {[%emt 0:00:16]} 7. Bb2 {[%emt 0:00:01]} Nbd7 {[%emt 0:00:16]} 8. d3 {[%emt 0:00:27]} O-O {[%emt 0:00:03]} 9. Nbd2 {[%emt 0:00:14]} a5 {[%emt 0:01:16]} 10. a3 {[%emt 0:00:14]} Bg6 {[%emt 0:00:38]} 11. Rc1 {[%emt 0:00:31]} Re8 {[%emt 0:00:12]} 12. Rc2 {[%emt 0:01:15]} Bd6 {[%emt 0:00:32]} 13. Qa1 {[%emt 0:00:43]} e5 {[%emt 0:03:17]} 14. cxd5 {[%emt 0:00:14]} cxd5 {[%emt 0:00:09]} 15. Nh4 {[%emt 0:00:18]} Bh5 {[%emt 0:01:15]} 16. Nf5 {[%emt 0:00:43]} Bf8 {[%emt 0:00:21]} 17. Nf3 {[%emt 0:00:56]} d4 {[%emt 0:02:09]} 18. Qc1 {[%emt 0:03:52]} Rc8 {[%emt 0:06:53]} 19. b4 {[%emt 0:04:32]} axb4 {[%emt 0:00:40]} 20. axb4 {[%emt 0:00:02]} Bxb4 {[%emt 0:00:15]} 21. Qg5 {[%emt 0:03:51]} Bg6 {[%emt 0:00:10]} 22. Rxc8 {[%emt 0:02:31]} Qxc8 {[%emt 0:00:01]} 23. Rc1 {[%emt 0:00:01]} Qd8 {[%emt 0:00:31]} 24. Rc4 {[%emt 0:00:54]} Bf8 {[%emt 0:00:41]} 25. N3h4 {[%emt 0:01:08]} Nb6 {[%emt 0:00:45]} 26. Rc2 {[%emt 0:00:29]} Nbd5 {[%emt 0:00:48]} 27. Bh3 {[%emt 0:00:46]} b5 {[%emt 0:00:43]} 28. Rc8 {[%emt 0:02:22]} Qxc8 {[%emt 0:02:01]} 29. Ne7+ {[%emt 0:00:04]} Nxe7 {[%emt 0:00:02]} 30. Bxc8 {[%emt 0:00:04]} Nxc8 {[%emt 0:00:01]} 31. Nf3 {[%emt 0:00:36]} h6 {[%emt 0:02:12]} 32. Qc1 {[%emt 0:00:02]} Bf5 {[%emt 0:02:47]} 33. Qc7 {[%emt 0:00:54]} b4 {[%emt 0:00:03]} 34. Nxe5 {[%emt 0:00:31]} Bd6 {[%emt 0:00:04]} 35. Qxf7+ {[%emt 0:00:04]} Kh7 {[%emt 0:00:13]} 36. f4 {[%emt 0:00:55]} Bxe5 {[%emt 0:00:25]} 37. fxe5 {[%emt 0:00:03]} Bg6 {[%emt 0:01:09]} 38. Qc7 {[%emt 0:00:31]} Nd5 {[%emt 0:00:05]} 39. Qb7 {[%emt 0:00:08]} Nc3 {[%emt 0:00:10]} 40. Qxb4 {[%emt 0:00:21]} Nxe2+ {[%emt 0:00:07]} 41. Kf2 {[%emt 0:00:07]} Rxe5 {[%emt 0:00:01]} 42. Qb8 {[%emt 0:00:31]} Re8 {[%emt 0:00:02]} 43. Qb5 {[%emt 0:00:05]} Nd6 {[%emt 0:00:14]} 44. Qd5 {[%emt 0:00:09]} Nf5 {[%emt 0:00:10]} 45. Qd7 {[%emt 0:00:05]} Re7 {[%emt 0:00:07]} 46. Qd8 {[%emt 0:00:05]} Re8 {[%emt 0:00:20]} 47. Qd7 {[%emt 0:00:03]} Nc3 {[%emt 0:00:11]} 48. Bxc3 {[%emt 0:00:17]} dxc3 {[%emt 0:00:01]} 49. Qc7 {[%emt 0:00:11]} c2 {[%emt 0:00:15]} 50. Qxc2 {[%emt 0:00:08]} Rd8 {[%emt 0:00:01]} 51. Qc4 {[%emt 0:00:20]} Nd6 {[%emt 0:00:14]} 52. Qa6 {[%emt 0:00:18]} Nf7 {[%emt 0:00:02]} 53. h4 {[%emt 0:00:14]} h5 {[%emt 0:00:07]} 54. Qa7 {[%emt 0:00:14]} Rxd3 {[%emt 0:00:14]} 55. Qe7 {[%emt 0:00:03]} Nh6 {[%emt 0:00:12]} 56. Qb4 {[%emt 0:00:06]} Ng4+ {[%emt 0:00:11]} 57. Kg2 {[%emt 0:00:02]} Re3 {[%emt 0:00:04]} 58. Qc4 {[%emt 0:00:15]} Be4+ {[%emt 0:00:19]} 59. Kh3 {[%emt 0:00:05]} Re1 {[%emt 0:00:08]} 60. Qg8+ {[%emt 0:00:06]} Kg6 {[%emt 0:00:19]} 61. Qf7+ {[%emt 0:00:15]} Kh6 {[%emt 0:00:03]} 62. Qxh5+ {[%emt 0:00:05]} Kxh5 {[%emt 0:00:02]} 1/2-1/2